bitfinex/quotes_ETHUSD_20241104
["timestamp","ask_amount","ask_price","bid_price","bid_amount"]
[1730733868865,4.09117,2444.3,2443.9,0.8016]
[1730733869074,4.09117,2444.3,2444.0,0.23259158]
[1730733869269,8.18154,2444.6,2444.1,0.23259158]
[1730733869485,8.18154,2444.6,2444.0,4.09162]
[1730733869789,8.18154,2444.6,2444.0,4.17344263]
[1730733869983,4.09083,2444.5,2444.1,0.23257957]
[1730733870293,4.09083,2444.5,2443.9,4.89327]
[1730733870476,4.09083,2444.5,2444.0,4.40590242]
[1730733870672,4.09083,2444.5,2444.0,0.08182222]
[1730733870857,4.92965879,2444.7,2444.2,4.09125]
[1730733871057,4.0905,2444.7,2444.3,0.7867]
[1730733871587,4.09067,2444.6,2444.3,0.7867]
[1730733871997,4.09081,2444.5,2444.3,0.7867]
[1730733872287,4.0905,2444.7,2444.3,0.7867]
[1730733872444,4.09067,2444.6,2444.3,0.7867]
[1730733873755,4.09082,2444.5,2444.3,0.7867]
[1730733873961,4.09082,2444.5,2444.0,0.8325]
[1730733873962,4.09125,2444.3,2444.0,0.8325]
[1730733875170,4.09098,2444.4,2444.0,0.8325]
[1730733875475,4.92986879,2444.6,2444.0,0.8325]
[1730733875680,0.83915879,2444.6,2444.0,0.8325]
[1730733875856,4.09109,2444.4,2444.0,0.8325]
[1730733877392,4.92995879,2444.6,2444.1,4.09146]
[1730733877767,4.09086,2444.5,2444.0,0.91432505]
[1730733878144,0.83915879,2444.6,2444.0,5.00581505]
[1730733878488,4.92955879,2444.8,2444.3,0.8279]
[1730733878852,4.92955879,2444.8,2444.3,4.91903]
[1730733879095,9.01999879,2444.8,2444.3,0.8279]
[1730733879273,4.92955879,2444.8,2444.3,4.91905]
[1730733879864,0.83915879,2444.8,2444.3,4.91898]
[1730733880068,0.83915879,2445.0,2444.5,8.18136]
[1730733880271,0.83915879,2445.0,2444.3,0.8279]
[1730733880272,0.83915879,2445.0,2444.7,4.09046]
[1730733880478,4.92897879,2445.1,2444.6,4.86023]
[1730733880901,4.09,2445.0,2444.6,0.7696]
[1730733881062,4.92897879,2445.1,2444.6,0.7696]
[1730733881063,4.92897879,2445.1,2444.6,4.86022]
[1730733881766,4.92897879,2445.1,2444.6,4.86023]
[1730733882405,0.83915879,2445.1,2444.7,4.09045]
[1730733882693,0.83915879,2445.2,2444.7,4.09045]
[1730733882896,4.92876879,2445.3,2444.7,4.09045]
[1730733883059,4.92890879,2445.2,2444.6,4.86023]
[1730733883260,0.83915879,2445.2,2444.6,0.7696]
[1730733883499,4.09007,2445.0,2444.6,0.7696]
[1730733884262,0.21049541,2445.1,2444.6,0.7696]
[1730733884263,4.30030541,2445.1,2444.6,0.7696]
[1730733884601,4.08982,2445.1,2444.6,4.86023]
[1730733885795,4.08965,2445.2,2444.6,4.86013]
[1730733885997,4.08965,2445.2,2444.6,8.95069]
[1730733886173,4.08991,2445.1,2444.6,0.7696]
[1730733886899,4.08965,2445.2,2444.6,4.86022]
[1730733887063,4.08965,2445.2,2444.6,0.7696]
[1730733887263,4.08989,2445.1,2444.6,0.7696]
[1730733887505,4.70911041,2445.2,2444.6,4.86012]
[1730733887676,4.08965,2445.2,2444.6,4.86012]
[1730733888191,4.08951,2445.3,2444.7,4.0904]
[1730733888361,4.08951,2445.3,2444.8,4.09029]
[1730733888565,4.08951,2445.3,2444.7,8.18076]
[1730733888761,4.92841879,2445.5,2444.9,4.09002]
[1730733888963,4.92853879,2445.4,2444.8,4.90029]
[1730733889275,4.08938,2445.4,2444.9,4.09013]
[1730733889604,4.08938,2445.4,2444.8,8.9905]
[1730733889891,4.92829879,2445.5,2444.9,4.09014]
[1730733890100,0.83915879,2445.5,2444.8,0.81]
[1730733890400,2.99324304,2446.1,2445.4,4.08928]
[1730733890401,0.83915879,2446.0,2445.4,4.08928]
[1730733890610,4.08855,2445.9,2445.4,4.08928]
[1730733890965,1.63915879,2446.1,2445.4,4.08931]
[1730733890966,4.92729879,2446.1,2445.4,4.08931]
[1730733891173,4.92722879,2446.2,2445.6,4.08897]
[1730733891414,1.02809341,2446.1,2445.7,4.08879]
[1730733891621,5.11629341,2446.1,2445.5,4.08903]
[1730733892203,0.7957,2445.9,2445.3,0.7813]
[1730733892573,0.7957,2445.9,2445.0,0.7925]
[1730733892574,4.08921,2445.5,2445.0,0.7925]
[1730733893179,4.08957,2445.3,2444.7,4.0904]
[1730733893588,4.08973,2445.2,2444.7,4.0904]
[1730733894180,0.7671,2445.3,2444.7,4.0904]
[1730733894377,4.08965,2445.2,2444.7,4.09036]
[1730733894577,0.7671,2445.3,2444.7,8.1807]
[1730733894910,4.08933,2445.4,2444.7,4.09034]
[1730733895210,4.08959,2445.3,2444.7,4.09034]
[1730733895776,4.08959,2445.3,2444.7,8.18074]
[1730733895977,4.08959,2445.3,2444.7,4.09034]
[1730733896172,4.08959,2445.3,2444.8,4.09029]
[1730733896498,0.488993,2445.4,2444.8,4.09021]
[1730733896499,4.578303,2445.4,2444.8,4.09021]
[1730733896816,4.578303,2445.4,2444.9,4.09012]
[1730733897182,10.42014738,2445.9,2444.8,4.09021]
[1730733897183,4.08879,2445.8,2445.1,4.08968]
[1730733897386,4.08923,2445.5,2445.0,0.8219]
[1730733898171,0.84831372,2445.6,2445.0,0.8219]
[1730733898394,4.93743372,2445.6,2445.0,0.8219]
[1730733898597,4.93743372,2445.6,2445.0,9.00171]
[1730733898598,4.08917,2445.5,2445.0,9.00171]
[1730733898799,4.93736372,2445.6,2445.1,4.08979]
[1730733899627,4.08881,2445.7,2445.2,4.08962]
[1730733899996,8.17774,2445.7,2445.1,8.17943]
[1730733900199,4.08881,2445.7,2445.1,8.17941]
[1730733900397,8.17772,2445.7,2445.1,4.0897]
[1730733900707,4.08881,2445.7,2445.2,4.08962]
[1730733900914,8.17721,2445.9,2445.3,4.08937]
[1730733901118,4.08871,2445.8,2445.3,4.08937]
[1730733901630,4.08871,2445.8,2445.1,4.0897]
[1730733901836,4.08904,2445.6,2445.0,4.91177]
[1730733901997,4.08904,2445.6,2445.1,4.08974]
[1730733902197,4.08877,2445.8,2445.1,4.08974]
[1730733902530,0.8006,2446.0,2445.3,4.08935]
[1730733902748,0.8006,2446.0,2445.5,0.8325]
[1730733902930,4.08866,2445.8,2445.5,0.8325]
[1730733903428,4.08866,2445.8,2445.3,0.8325]
[1730733904903,4.88893,2446.0,2445.5,4.08912]
[1730733905102,8.17612,2446.2,2445.5,4.08912]
[1730733905337,8.17612,2446.2,2445.6,4.08895]
[1730733905535,4.08801,2446.2,2445.6,4.08895]
[1730733905744,4.08801,2446.2,2445.7,0.7511]
[1730733906246,4.08814,2446.1,2445.7,0.7511]
[1730733906419,4.08801,2446.2,2445.7,0.7511]
[1730733906822,4.08826,2446.1,2445.7,0.7511]
[1730733907232,4.08831,2446.0,2445.7,0.7511]
[1730733907441,4.08826,2446.1,2445.7,0.7511]
[1730733907611,4.08799,2446.2,2445.7,4.92163845]
[1730733907817,4.08794,2446.3,2445.8,4.08849]
[1730733908022,4.08794,2446.3,2445.7,4.83987]
[1730733908259,4.08805,2446.2,2445.7,4.83984]
[1730733908445,4.08794,2446.3,2445.8,4.0886]
[1730733908645,4.08794,2446.3,2445.7,8.92856]
[1730733908953,4.08784,2446.3,2445.8,4.08857]
[1730733909301,4.08799,2446.2,2445.8,4.08857]
[1730733909697,4.08799,2446.2,2445.7,0.7511]
[1730733909698,4.08826,2446.1,2445.7,0.7511]
[1730733909861,4.08824,2446.1,2445.7,0.7511]
[1730733910223,4.08822,2446.1,2445.7,0.7511]
[1730733910426,4.08774,2446.4,2445.7,4.83982]
[1730733910629,4.08774,2446.4,2445.9,4.0884]
[1730733910823,4.08682,2446.9,2446.1,0.7589]
[1730733911152,8.2742035,2447.4,2447.0,0.809]
[1730733911459,4.1882235,2447.4,2447.3,4.08613]
[1730733911770,4.1882235,2447.4,2447.3,4.89513]
[1730733912063,4.1882235,2447.4,2447.3,0.809]
[1730733912410,4.1882235,2447.4,2447.3,4.91513]
[1730733912655,0.0604162,2447.9,2447.8,4.0953]
[1730733912869,0.0604162,2447.9,2447.8,12.52464994]
[1730733913018,0.0604162,2447.9,2447.8,12.75624081]
[1730733915327,0.0604162,2447.9,2447.8,12.52464994]
[1730733915708,6.2e-06,2447.9,2447.8,12.75475754]
[1730733916072,6.28233526,2448.8,2448.7,7.84709]
[1730733916352,6.28233526,2448.8,2448.7,12.56369777]
[1730733916565,6.28233526,2448.8,2448.7,12.48203994]
[1730733916914,6.28233526,2448.8,2448.7,7.84709]
[1730733917510,6.28233526,2448.8,2448.7,7.85709]
[1730733918350,6.28233526,2448.8,2448.7,7.84709]
[1730733918914,8.16481,2449.6,2449.0,4.08329]
[1730733919110,4.0824,2449.6,2449.0,4.08329]
[1730733919562,8.1648,2449.6,2449.0,4.08329]
[1730733919865,4.0824,2449.6,2449.0,4.08329]
[1730733920730,4.0824,2449.6,2448.9,4.08346]
[1730733920943,4.08249,2449.5,2448.9,4.08335]
[1730733921148,8.16482,2449.6,2449.0,4.08329]
[1730733921464,4.08239,2449.6,2449.0,4.08329]
[1730733921867,4.08239,2449.6,2448.9,4.08335]
[1730733922025,4.08247,2449.5,2448.9,8.16671]
[1730733922420,4.08247,2449.5,2448.9,4.08335]
[1730733922626,0.7778,2449.2,2448.4,0.7805]
[1730733922822,4.08373,2448.8,2448.3,4.08438]
[1730733923241,4.08355,2448.9,2448.3,4.08438]
[1730733923480,4.08355,2448.9,2448.3,8.16871]
[1730733923677,4.08355,2448.9,2448.3,4.08433]
[1730733923971,4.08332,2449.0,2448.5,4.0841]
[1730733924138,0.0604162,2449.1,2448.1,4.86513]
[1730733924339,0.0604162,2449.1,2447.8,4.09521]
[1730733924340,4.0845,2448.3,2447.8,0.7853]
[1730733924670,4.08464,2448.2,2447.7,4.08537]
[1730733924869,8.1691,2448.3,2447.5,0.7853]
[1730733925182,0.8318,2448.4,2447.9,4.08513]
[1730733925321,4.0839,2448.7,2447.6,0.08169613]
[1730733925322,4.08403,2448.6,2448.1,4.08475]
[1730733925694,4.0839,2448.7,2448.1,8.1695]
[1730733925848,0.8187,2448.8,2448.3,4.08437]
[1730733926232,4.08331,2449.0,2448.4,4.08429]
[1730733926526,0.8791162,2449.1,2448.5,0.08167412]
[1730733926767,0.8791162,2449.1,2448.4,4.88377]
[1730733926950,4.0833,2449.0,2448.5,4.0841]
[1730733927355,4.0833,2449.0,2448.4,0.7996]
[1730733927553,4.08396,2448.7,2448.2,3.0]
[1730733927723,4.08405,2448.6,2448.1,8.20097139]
[1730733927923,4.08374,2448.8,2448.3,4.08442]
[1730733928141,4.08374,2448.8,2448.2,4.16622931]
[1730733928142,4.08374,2448.8,2448.2,4.08455]
[1730733928578,4.08384,2448.7,2448.2,4.08455]
[1730733928861,4.08375,2448.8,2448.1,8.20094139]
[1730733929037,4.08375,2448.8,2448.3,4.08443]
[1730733929436,8.16678,2449.0,2448.4,0.08167914]
[1730733929639,0.0604162,2449.1,2448.4,0.08167914]
[1730733929640,4.1435662,2449.1,2448.6,4.08388]
[1730733929973,8.2268062,2449.1,2448.6,4.08388]
[1730733930187,4.08333,2449.0,2448.5,4.08413]
[1730733930844,4.08348,2448.9,2448.3,8.16873]
[1730733931146,4.08348,2448.9,2448.4,4.08424]
[1730733931349,4.08373,2448.8,2448.3,4.08435]
[1730733931551,4.08348,2448.9,2448.3,8.16865]
[1730733931877,4.08348,2448.9,2448.3,4.0843]
[1730733932188,4.08348,2448.9,2448.3,8.1686]
[1730733932669,4.08348,2448.9,2448.3,4.0843]
[1730733932990,4.08366,2448.8,2448.3,4.0843]
[1730733933132,4.0842,2448.5,2448.1,3.31659139]
[1730733933337,4.08437,2448.4,2448.1,3.31659139]
[1730733933562,4.0842,2448.5,2448.1,3.31659139]
[1730733933926,4.08391,2448.7,2448.1,3.31659139]
[1730733933927,4.08391,2448.7,2448.1,7.40131139]
[1730733934135,4.0823,2449.6,2448.1,7.40131139]
[1730733934136,4.9243662,2449.1,2448.3,0.7853]
[1730733934329,4.9243662,2449.1,2448.6,4.08392]
[1730733934575,0.8411162,2449.1,2448.6,4.08392]
[1730733934808,0.8411162,2449.1,2448.6,8.1678]
[1730733935091,0.0604162,2449.1,2448.7,4.08379]
[1730733935248,0.0604162,2449.1,2448.3,4.86975]
[1730733935249,4.1436862,2449.1,2448.5,4.084]
[1730733935430,4.1436862,2449.1,2448.3,4.86965]
[1730733935431,0.0604162,2449.1,2448.4,4.08429]
[1730733935779,4.1435762,2449.1,2448.6,4.08395]
[1730733936185,0.0604162,2449.1,2448.7,4.08377]
[1730733936477,0.0604162,2449.1,2448.7,4.08366]
[1730733936688,0.0604162,2449.1,2448.8,4.08362]
[1730733937197,0.0604162,2449.1,2449.0,4.08329]
[1730733937733,0.0604162,2449.1,2449.0,4.16494403]
[1730733937974,0.0604162,2449.1,2449.0,4.08329]
[1730733938330,0.0604162,2449.1,2449.0,4.86679]
[1730733938690,0.0604162,2449.1,2449.0,5.17895188]
[1730733938839,0.0604162,2449.1,2449.0,5.09730477]
[1730733939177,9.0266762,2450.3,2449.7,8.16412]
[1730733939490,5.84810382,2450.3,2449.7,4.082]
[1730733939631,4.08138,2450.2,2449.7,4.082]
[1730733939861,5.84810382,2450.3,2449.7,4.08213]
[1730733940065,4.08144,2450.2,2449.7,4.08213]
[1730733940260,4.08147,2450.1,2449.6,0.7835]
[1730733940703,4.08147,2450.1,2449.7,0.23125719]
[1730733940904,4.08147,2450.1,2449.8,0.23125719]
[1730733941057,0.58483538,2450.1,2449.6,0.7835]
[1730733941422,4.0813,2450.2,2449.7,0.23127873]
[1730733941709,4.08149,2450.1,2449.8,0.23127873]
[1730733941917,0.8642162,2450.3,2449.6,0.7835]
[1730733942206,4.08188,2449.9,2449.7,0.23159114]
[1730733942409,4.08188,2449.9,2449.8,0.23159114]
[1730733942590,5.251468,2449.9,2449.8,0.23159114]
[1730733942794,5.251468,2449.9,2449.3,8.9223]
[1730733942997,4.08197,2449.8,2449.4,0.60266223]
[1730733943306,4.08197,2449.8,2449.5,0.60266223]
[1730733943465,4.08214,2449.7,2449.6,0.23178627]
[1730733943664,4.08214,2449.7,2449.3,0.757]
[1730733943872,4.08214,2449.7,2449.1,4.083]
[1730733943873,4.08214,2449.7,2449.4,0.23177835]
[1730733944167,4.08214,2449.7,2449.5,0.23177835]
[1730733944393,4.08214,2449.7,2449.1,4.86321]
[1730733944707,4.63242,2449.6,2449.2,0.60264993]
[1730733944912,0.74085976,2449.7,2449.3,0.23178154]
[1730733945070,4.84324,2449.9,2449.4,0.23178154]
[1730733945264,4.08201,2449.8,2449.5,0.23178154]
[1730733945464,4.08201,2449.8,2449.6,0.23177104]
[1730733945669,4.08201,2449.8,2449.2,4.08296]
[1730733945895,4.84324,2449.9,2449.3,0.60261858]
[1730733946110,4.08239,2449.6,2449.4,0.60262516]
[1730733946325,4.08228,2449.7,2449.5,0.23178847]
[1730733946473,4.08228,2449.7,2449.6,0.23178847]
[1730733946810,4.08224,2449.7,2449.1,4.08301]
[1730733947020,4.08224,2449.7,2449.2,4.68557077]
[1730733947169,4.08224,2449.7,2449.3,0.60262077]
[1730733947370,4.08224,2449.7,2449.4,0.23177032]
[1730733947571,4.08224,2449.7,2449.2,4.16459931]
[1730733947572,4.08197,2449.8,2449.5,0.23177032]
[1730733947916,4.08164,2450.0,2449.6,0.23177032]
[1730733948227,4.08159,2450.1,2449.7,0.23177032]
[1730733948401,4.08159,2450.1,2449.4,4.08248]
[1730733948402,4.08183,2449.9,2449.4,4.08248]
[1730733948610,4.08183,2449.9,2449.5,0.60263204]
[1730733948814,4.08183,2449.9,2449.6,0.23177466]
[1730733949126,4.08183,2449.9,2449.7,0.23177466]
[1730733949425,5.4106023,2450.1,2449.3,0.7988]
[1730733949625,4.08192,2449.9,2449.4,0.60258703]
[1730733949864,4.0821,2449.8,2449.5,0.23175735]
[1730733949985,4.0821,2449.8,2449.6,0.23175735]
[1730733950189,4.0821,2449.8,2449.3,0.7988]
[1730733950386,4.08192,2449.9,2449.4,0.60252302]
[1730733950590,4.08192,2449.9,2449.5,0.60252302]
[1730733950834,4.08192,2449.9,2449.6,0.23173273]
[1730733951147,4.08192,2449.9,2449.7,0.23172074]
[1730733951327,4.08192,2449.9,2449.4,4.16424197]
[1730733951538,8.1638,2449.9,2449.5,0.60239261]
[1730733951720,4.08188,2449.9,2449.6,0.23168257]
[1730733951885,4.08163,2450.0,2449.7,0.23168257]
[1730733952086,4.08163,2450.0,2449.4,4.08255]
[1730733952305,4.08163,2450.0,2449.5,0.60242727]
[1730733952625,4.0818,2449.9,2449.6,0.2316959]
[1730733952788,4.0818,2449.9,2449.7,0.2316959]
[1730733952989,4.0818,2449.9,2449.3,4.88157]
[1730733953183,4.08189,2449.9,2449.4,4.68494313]
[1730733953389,4.08163,2450.0,2449.5,0.60233313]
[1730733953586,4.08163,2450.0,2449.6,0.2316597]
[1730733953822,4.08204,2449.8,2449.7,0.2316597]
[1730733954722,4.08204,2449.8,2449.3,0.7988]
[1730733955032,4.08241,2449.6,2449.4,0.60238519]
[1730733955303,4.08241,2449.6,2449.1,0.7524]
[1730733955508,4.08241,2449.6,2449.2,0.60262615]
[1730733955706,4.08241,2449.6,2449.3,0.60262615]
[1730733955916,4.08241,2449.6,2449.4,0.23177267]
[1730733956063,4.08246,2449.5,2449.1,0.7524]
[1730733956267,4.88305,2449.7,2449.2,4.68556733]
[1730733956571,4.88305,2449.7,2449.3,0.60261733]
[1730733956774,0.489763,2450.0,2449.4,0.231769]
[1730733956980,4.08199,2449.8,2449.5,0.231769]
[1730733957189,4.08199,2449.8,2449.3,4.08277]
[1730733957391,4.0818,2449.9,2449.4,4.31445008]
[1730733957595,4.08175,2450.0,2449.5,0.23184008]
[1730733957772,4.08175,2450.0,2449.6,1.05194008]
[1730733957986,4.08146,2450.1,2449.7,0.23184008]
[1730733958209,4.08171,2450.0,2449.6,0.8201]
[1730733958396,0.8279162,2450.3,2449.7,0.23184656]
[1730733958397,4.08143,2450.2,2449.7,0.23184656]
[1730733958568,4.08143,2450.2,2449.6,0.8201]
[1730733958569,4.08157,2450.1,2449.8,0.23183184]
[1730733958773,4.08157,2450.1,2449.6,0.8201]
[1730733958971,4.08147,2450.1,2449.7,0.23185193]
[1730733959212,4.08147,2450.1,2449.8,0.23186132]
[1730733959542,4.08132,2450.2,2449.7,8.16417]
[1730733959673,4.08132,2450.2,2449.8,0.2319044]
[1730733959867,4.08132,2450.2,2449.9,0.2319044]
[1730733960232,4.1415462,2450.3,2450.0,0.2319044]
[1730733960523,4.1415462,2450.3,2449.8,4.08194]
[1730733960812,4.1415462,2450.3,2449.6,0.8201]
[1730733960813,4.08138,2450.2,2449.9,0.23189994]
[1730733961014,0.41417962,2450.2,2449.6,0.8201]
[1730733961214,0.41417962,2450.2,2449.7,0.60297082]
[1730733961215,4.08195,2449.9,2449.7,0.60297082]
[1730733961383,4.08195,2449.9,2449.8,0.23190495]
[1730733961970,4.08154,2450.1,2449.8,0.23190495]
[1730733962178,4.08164,2450.0,2449.9,0.23190495]
[1730733962462,0.0604162,2450.3,2449.9,0.23190495]
[1730733962628,0.0604162,2450.3,2450.0,4.31346495]
[1730733962774,0.0604162,2450.3,2450.1,0.23190495]
[1730733962973,0.0604162,2450.3,2450.2,0.23190495]
[1730733963470,0.0604162,2450.3,2450.2,0.60324884]
[1730733963783,0.0604162,2450.3,2450.2,0.60323464]
[1730733963984,0.0604162,2450.3,2450.2,4.68452464]
[1730733964210,0.0604162,2450.3,2450.1,4.08139]
[1730733964508,0.0604162,2450.3,2450.2,4.7666771]
[1730733964820,0.0604162,2450.3,2450.2,0.60377279]
[1730733965591,0.0604162,2450.3,2450.2,0.68538719]
[1730733965786,0.0604162,2450.3,2450.2,0.68523601]
[1730733966376,0.0604162,2450.3,2450.2,0.3138278]
[1730733966701,0.0604162,2450.3,2450.2,0.2322134]
[1730733966903,0.0604162,2450.3,2450.2,4.3135034]
[1730733967102,0.0604162,2450.3,2450.2,4.68493154]
[1730733967421,0.0604162,2450.3,2450.2,8.57554049]
[1730733967603,0.0604162,2450.3,2450.2,8.49393154]
[1730733969729,0.0604162,2450.3,2450.2,4.41264154]
[1730733970059,0.0604162,2450.3,2450.2,8.1225034]
[1730733970239,0.0604162,2450.3,2450.2,8.49348911]
[1730733970441,0.0604162,2450.3,2450.2,1.0412134]
[1730733970655,0.0604162,2450.3,2450.2,0.809]
[1730733971161,0.0604162,2450.3,2450.1,0.23179441]
[1730733971464,0.0604162,2450.3,2450.1,4.08144]
[1730733971666,0.0604162,2450.3,2450.1,8.16283]
[1730733971809,0.0604162,2450.3,2450.2,4.08129]
[1730733972014,0.0604162,2450.3,2450.1,4.08139]
[1730733972336,0.0604162,2450.3,2450.0,3.0]
[1730733972649,0.0604162,2450.3,2449.9,4.88394]
[1730733972816,0.0604162,2450.3,2449.9,0.8023]
[1730733973011,4.1415562,2450.3,2449.9,0.8023]
[1730733973313,4.1415562,2450.3,2449.8,4.08194]
[1730733973314,4.08154,2450.1,2449.6,4.87028]
[1730733973743,4.08146,2450.1,2449.5,4.08242]
[1730733973947,4.08174,2450.0,2449.5,4.08242]
[1730733974683,4.0818,2449.9,2449.5,4.08245]
[1730733974985,4.08174,2450.0,2449.4,7.87072]
[1730733975182,4.08148,2450.1,2449.5,4.16394655]
[1730733975490,4.08148,2450.1,2449.4,3.7881]
[1730733975491,0.7942,2449.5,2448.5,0.7815]
[1730733975705,4.87761,2449.0,2448.6,0.23182191]
[1730733975875,8.69854168,2448.8,2448.3,0.23182093]
[1730733976179,8.69854168,2448.8,2447.8,0.01]
[1730733976180,0.7897,2448.4,2448.1,0.23186893]
[1730733976340,4.87411,2448.4,2447.9,0.23170442]
[1730733976543,0.7897,2448.4,2448.0,0.23170919]
[1730733976776,4.87401,2448.4,2447.8,4.51206907]
[1730733977144,4.08458,2448.3,2447.8,4.51206907]
[1730733977377,8.95842,2448.4,2447.8,4.51208907]
[1730733977582,4.87401,2448.4,2447.8,4.51208907]
[1730733977789,4.87401,2448.4,2447.9,4.08513]
[1730733978146,8.95843,2448.4,2447.7,4.0853]
[1730733978348,4.08448,2448.3,2447.8,4.08524]
[1730733978642,4.87401,2448.4,2447.8,3.90383956]
[1730733978999,4.08448,2448.3,2447.8,3.90383956]
[1730733979152,4.87401,2448.4,2447.8,7.98904956]
[1730733979349,4.08446,2448.3,2447.8,3.90383956]
[1730733979587,4.08409,2448.6,2448.0,4.08481]
[1730733979791,4.08409,2448.6,2448.1,4.08476]
[1730733980040,4.08409,2448.6,2448.0,4.08481]
[1730733980209,4.08414,2448.5,2448.0,4.08486]
[1730733980498,4.08409,2448.6,2448.0,4.08486]
[1730733980699,4.08415,2448.5,2448.0,4.08486]
[1730733980873,4.08409,2448.6,2448.1,4.08478]
[1730733981284,4.08409,2448.6,2448.0,4.08486]
[1730733981466,0.8105,2448.7,2448.2,4.08461]
[1730733981665,0.8105,2448.7,2448.1,0.8202]
[1730733981666,4.08405,2448.6,2448.1,0.8202]
[1730733981879,4.08418,2448.5,2448.1,0.8202]
[1730733982054,4.08405,2448.6,2448.1,0.8202]
[1730733982381,4.08405,2448.6,2448.1,4.90492]
[1730733982580,4.492127,2448.8,2448.2,4.16631248]
[1730733982755,9.10692868,2448.8,2448.2,4.08463]
[1730733983403,9.10692868,2448.8,2448.2,4.08449]
[1730733983606,9.10692868,2448.8,2448.3,4.08437]
[1730733983757,9.10691868,2448.8,2448.2,4.08449]
[1730733984101,1.27691803,2448.5,2448.2,4.08449]
[1730733984303,10.89503392,2448.5,2447.9,3.0]
[1730733984511,4.08447,2448.3,2447.8,0.7985]
[1730733984808,4.08447,2448.3,2447.8,4.08529]
[1730733984809,4.61480168,2448.2,2447.8,4.08529]
[1730733985010,1.27691803,2448.2,2447.9,4.16680427]
[1730733985236,5.78702737,2448.3,2447.9,4.08511]
[1730733985237,4.08447,2448.3,2447.9,4.08511]
[1730733985446,5.66113039,2448.3,2447.9,4.08511]
[1730733985648,9.74568039,2448.3,2447.7,4.08531]
[1730733985927,5.66113039,2448.3,2447.8,4.08527]
[1730733986434,8.69902168,2448.5,2448.0,4.08486]
[1730733986631,4.61480168,2448.5,2448.0,4.08496]
[1730733986784,4.61480168,2448.5,2448.1,4.08475]
[1730733986985,8.69894168,2448.5,2448.1,4.08475]
[1730733987384,4.88861,2448.7,2448.2,4.0846]
[1730733987584,8.97257,2448.7,2448.2,4.16628823]
[1730733987790,4.88861,2448.7,2448.2,4.16628823]
[1730733988105,4.88861,2448.7,2448.3,4.08446]
[1730733988448,4.88858,2448.7,2448.2,4.16631218]
[1730733988590,4.88858,2448.7,2448.2,4.08463]
[1730733988806,4.88858,2448.7,2448.2,4.16631219]
[1730733989012,4.88858,2448.7,2448.2,4.08463]
[1730733989237,4.61480168,2448.8,2448.4,4.08421]
[1730733989443,4.61480168,2448.8,2448.4,8.16843]
[1730733989631,4.61480168,2448.8,2448.4,4.08421]
[1730733990150,8.69845168,2448.8,2448.3,4.08446]
[1730733990365,4.08406,2448.6,2448.1,4.0847]
[1730733990653,4.08381,2448.7,2448.3,4.08446]
[1730733990810,8.69845168,2448.8,2448.3,4.08446]
[1730733991008,4.0838,2448.7,2448.3,4.16614006]
[1730733991272,4.0838,2448.7,2448.3,4.08446]
[1730733992005,8.16771,2448.7,2448.2,4.0846]
[1730733992210,4.0838,2448.7,2448.2,4.0846]
[1730733992656,4.90308,2448.9,2448.4,4.0842]
[1730733993153,8.98662,2448.9,2448.4,4.0842]
[1730733993707,4.90308,2448.9,2448.4,4.0842]
[1730733994308,4.08372,2448.8,2448.3,8.16881]
[1730733994705,4.08372,2448.8,2448.4,4.08428]
[1730733994951,0.8196,2448.9,2448.5,4.08412]
[1730733995164,4.90315,2448.9,2448.4,4.16585466]
[1730733996866,4.08364,2448.8,2448.4,4.16585466]
[1730733997009,4.90313,2448.9,2448.4,4.16585466]
[1730733998021,5.35971803,2449.3,2448.5,4.85997]
[1730733998022,4.08313,2449.1,2448.5,4.85997]
[1730733998258,4.08313,2449.1,2448.6,0.08167023]
[1730733998462,4.85446,2449.2,2448.6,0.08167023]
[1730733998463,4.0833,2449.0,2448.6,4.08392]
[1730733998813,4.0833,2449.0,2448.6,0.08166999]
[1730733999346,4.08335,2449.0,2448.5,4.86005]
[1730733999557,4.08335,2449.0,2448.6,0.08167002]
[1730733999715,4.08335,2449.0,2448.5,4.86006]
[1730734000316,8.16677,2449.0,2448.5,4.86006]
[1730734000863,4.08346,2448.9,2448.5,0.776]
[1730734001170,4.08331,2449.0,2448.6,0.08167002]
[1730734004468,4.08331,2449.0,2448.7,0.23217932]
[1730734004631,4.08331,2449.0,2448.6,0.08167002]
[1730734004969,4.08331,2449.0,2448.7,0.23218898]
[1730734005174,4.08331,2449.0,2448.6,0.08167002]
[1730734005319,4.08331,2449.0,2448.7,0.23247166]
[1730734005519,4.08331,2449.0,2448.8,0.23247166]
[1730734005766,4.08331,2449.0,2448.6,4.16562002]
[1730734005931,4.08331,2449.0,2448.7,0.60444966]
[1730734006259,4.08331,2449.0,2448.8,0.23247157]
[1730734006458,1.27691803,2449.1,2448.9,0.23245036]
[1730734006661,6.13138803,2449.2,2448.7,4.08373]
[1730734006820,4.08322,2449.1,2448.8,0.60436232]
[1730734007028,5.36013803,2449.1,2448.9,0.23244013]
[1730734007362,1.27691803,2449.0,2448.7,0.08166636]
[1730734007684,2.96630046,2449.7,2449.5,4.08246]
[1730734007685,1.27691803,2449.6,2449.5,4.08246]
[1730734007822,1.27691803,2449.8,2449.7,4.08213]
[1730734008017,1.27691803,2449.9,2449.7,4.31460545]
[1730734008324,2.12869149,2450.1,2449.4,4.86446]
[1730734008325,1.27691803,2450.1,2449.4,4.86446]
[1730734008522,4.08194,2449.9,2449.5,0.60355789]
[1730734008729,4.08203,2449.8,2449.6,0.23213074]
[1730734008930,4.08203,2449.8,2449.2,4.08281]
[1730734008931,4.0822,2449.7,2449.2,4.08281]
[1730734009262,4.08247,2449.5,2449.3,0.23215396]
[1730734009462,4.08247,2449.5,2449.2,0.37134306]
[1730734009770,8.16507,2449.5,2449.3,0.23208476]
[1730734010065,1.0210388,2449.5,2449.1,4.45442775]
[1730734010219,4.08232,2449.6,2449.2,0.23208841]
[1730734010419,4.08232,2449.6,2449.3,0.23208841]
[1730734010659,0.7684,2449.7,2449.1,4.08307]
[1730734010816,4.8506,2449.7,2449.2,4.08289]